Cogmind - Beta 9.2 --- EXPLORER MODE // 2019.11.28 @ 11:37:56 Player: Tenebrous Result: Destroyed by D-53 Grenadier with Mini Grenade Launcher Performance ------------- Evolutions (0) 0 Regions Visited (2) 400 Robots Destroyed (21) 105 Value Destroyed (471) 471 Prototype IDs (0) 0 Alien Tech Used (0) 0 Bonus (0) 0 TOTAL SCORE: 976 Bonus ------- None Cogmind --------- Core Integrity 0/250 Matter 245/300 Energy 100/100 System Corruption 4% Temperature Cool (0) Movement Core (650) Ox12 Location -10/Mines Parts ------- > --- POWER (1) -------- (None) > --- PROPULSION (2) --- (None) > --- UTILITY (3) ------ High-capacity Storage Unit Sensor Array > --- WEAPON (2) ------- Rocket Launcher > --- INVENTORY (12) --- Ion Engine Light Ion Engine Aluminum Leg Structural Scanner Visual Processing Unit Signal Interpreter Seismic Analyzer Targeting Computer Power Shielding Assault Rifle Light Assault Rifle Peak State ------------ > --- POWER ------------ Ion Engine > --- PROPULSION ------- Aluminum Leg Aluminum Leg > --- UTILITY ---------- High-capacity Storage Unit Sensor Array Targeting Computer > --- WEAPON ----------- Medium Laser Assault Rifle > --- INVENTORY -------- Ion Engine Light Ion Engine Structural Scanner Visual Processing Unit Signal Interpreter Seismic Analyzer Targeting Computer Power Shielding Light Cannon [Rating: 9] Favorites ----------- Power Ion Engine Engine Ion Engine Propulsion Aluminum Leg Leg Aluminum Leg Utility Targeting Computer Device Sensor Array Storage High-capacity Storage Unit Processor Targeting Computer Weapon Light Cannon Energy Gun Medium Laser Ballistic Gun Assault Rifle Ballistic Cannon Light Cannon Launcher Rocket Launcher Build | -11 -10 -10 ------- Run | Scr Mat Min Slots Evolved 1 | . 1 . Power . | . . . Propulsion . | . . . Utility 1 | . 1 . Weapon . | . . . Parts Attached 19 | 7 7 5 Power 4 | 1 2 1 Engine 4 | 1 2 1 Core . | . . . Reactor . | . . . Propulsion 2 | 2 . . Treads . | . . . Leg 2 | 2 . . Wheel . | . . . Hover . | . . . Flight . | . . . Utility 5 | 2 3 . Device 1 | . 1 . Storage 3 | 1 2 . Processor 1 | 1 . . Hackware . | . . . Protection . | . . . Artifact . | . . . Weapon 8 | 2 2 4 Energy Gun 2 | 1 1 . Energy Cannon . | . . . Ballistic Gun 2 | 1 1 . Ballistic Cannon 3 | . . 3 Launcher 1 | . . 1 Special Weapon . | . . . Impact Weapon . | . . . Slashing Weapon . | . . . Piercing Weapon . | . . . Special Melee Weapon . | . . . Unidentified Prototypes . | . . . Parts Lost 7 | . . 7 Power 1 | . . 1 Propulsion 2 | . . 2 Utility 1 | . . 1 Weapon 3 | . . 3 Highest Loss Streak 6 | . . 6 Average Slot Usage (%) 99 | . 99 99 Engine 11 | . 12 11 Leg 24 | . 25 24 Device 9 | . 5 12 Storage 14 | . 17 12 Processor 11 | . 12 11 Energy Gun 5 | . 12 . Ballistic Gun 5 | . 12 . Ballistic Cannon 13 | . . 23 Naked Turns . | . . . Heaviest Build 44 | 15 42 44 Greatest Support 20 | 20 20 20 Greatest Overweight (x) 2 | 1 2 2 Average Overweight (x) 1 | . . 2 Largest Inventory Capacity 12 | 8 12 12 Average Capacity 10 | 6 8 12 Most Carried 12 | 4 10 12 Average Carried 9 | 2 7 11 Final Capacity 12 | 8 12 12 Final Carried 11 | 3 10 11 Class Distribution -------------------- 100% | Mutant Dominant Class ---------------- Mutant | -10/Materials Mutant | -10/Mines Resources | -11 -10 -10 ----------- Run | Scr Mat Min Matter Collected 638 | 265 173 200 Remotely . | . . . Salvage Created 564 | . 356 208 Parts 35 | . 25 10 Haulers Intercepted . | . . . Recyclers Shooed 1 | . 1 . Parts Field Recycled . | . . . Retrieved Matter . | . . . Parts Self-Destructed . | . . . Prevented . | . . . Kills | -11 -10 -10 ------- Run | Scr Mat Min Combat Hostiles Destroyed 17 | . 7 10 Guns 8 | . 7 1 Cannons 9 | . . 9 Classes Destroyed 6 | . 5 1 Builder 1 | . 1 . Recycler 1 | . 1 . Watcher 2 | . 2 . Swarmer 6 | . 2 4 Grunt 9 | . 5 4 Assembled 2 | . . 2 Best Kill Streak 4 | . 3 4 Combat Bots Only 4 | . 2 4 Max Kills in Single Turn 2 | . 1 2 Gunslinging . | . . . Exploded . | . . . Melee . | . . . Uniques/NPCs Destroyed . | . . . Combat | -11 -10 -10 -------- Run | Scr Mat Min Damage Taken 1002 | . 166 836 Core 250 | . 42 208 Absorbed by Shields . | . . . Core Remaining (%) 100 | 100 . . Volleys Fired 61 | 1 25 35 Largest 2 | 2 2 2 Hottest 70 | 70 70 70 Shots Fired 113 | 2 50 61 Gun 70 | 2 50 18 Cannon 42 | . . 42 Launcher 1 | . . 1 Special . | . . . Kinetic 85 | 1 25 59 Thermal 27 | 1 25 1 Explosive 1 | . . 1 Electromagnetic . | . . . Robot Hit Streak 29 | . 15 29 Robot Miss Streak 2 | . 1 2 Penetration Max . | . . . Secondary Targets 2 | . 2 . Max Gunslinging Chain 1 | . 1 . Shots Hit Robots 87 | . 42 45 Core Hits 40 | . 21 19 Critical Hits 1 | . . 1 Critical Kills . | . . . Critical Parts Destroyed 1 | . . 1 Melee Attacks . | . . . Impact . | . . . Slashing . | . . . Piercing . | . . . Sneak Attacks . | . . . Combat Hostiles . | . . . Follow-up Attacks . | . . . Damage Inflicted 1171 | . 459 712 Guns 622 | . 455 167 Cannons 527 | . . 527 Explosions 18 | . . 18 Melee . | . . . Ramming 4 | . 4 . Kinetic 900 | . 218 682 Thermal 249 | . 237 12 Explosive 18 | . . 18 Electromagnetic . | . . . Impact . | . . . Slashing . | . . . Piercing . | . . . Highest Corruption 4 | . 1 4 Average Corruption 1 | . 1 1 Corruption Purged . | . . . Effects 10 | . 3 7 Message Errors 5 | . 2 3 Data Loss (minor) 2 | . 1 1 Targeting Errors 2 | . . 2 Weapon Failures 1 | . . 1 Overload Shots . | . . . Overflow Damage 17 | . . 17 Projectiles 17 | . . 17 Explosions . | . . . Melee . | . . . Knockbacks 6 | . . 6 Impact . | . . . Kinetic 5 | . . 5 Secondary 1 | . . 1 Self-Inflicted Damage . | . . . Shots . | . . . Rammed . | . . . Targets Rammed 1 | . 1 . Kicked 1 | . 1 . Crushed . | . . . Highest Temperature 177 | 9 177 67 Average Temperature 33 | 6 47 19 Received Heat Transfer 379 | . 129 250 Siege Activations . | . . . Robots Corrupted . | . . . Combat Hostiles . | . . . Parts Fried . | . . . Impact Corruptions . | . . . Robots Melted . | . . . Combat Hostiles . | . . . Parts Melted 1 | . 1 . Heat Transferred 740 | . 703 37 Parts Sabotaged . | . . . Parts Stolen . | . . . Parts Stripped . | . . . Power Chain Reactions . | . . . Missiles Intercepted . | . . . Alert | -11 -10 -10 ------- Run | Scr Mat Min Peak Influence 173 | . 173 170 Average Influence 55 | . 71 47 Maximum Alert Level . | . . . Low Security (%) 100 | 100 100 100 Level 1 . | . . . Level 2 . | . . . Level 3 . | . . . Level 4 . | . . . Level 5 . | . . . High Security . | . . . Max Security . | . . . Squads Dispatched . | . . . Investigation . | . . . Extermination . | . . . Reinforcement . | . . . Assault . | . . . Garrison . | . . . Intercept . | . . . Construction Impeded . | . . . Haulers Reinforced . | . . . Stealth | -11 -10 -10 --------- Run | Scr Mat Min Distress Signals . | . . . Communications Jammed . | . . . Distress Signals . | . . . Times Spotted 34 | . 12 22 Peak Tracking Total 19 | . 4 19 Tactical Retreats . | . . . Traps | -11 -10 -10 ------- Run | Scr Mat Min Traps Triggered 2 | . 2 . Indirectly . | . . . Trap Hack Attempts . | . . . Triggered . | . . . Disarmed . | . . . Reprogrammed . | . . . Reused . | . . . Traps Extracted . | . . . Installed . | . . . Triggered . | . . . Machines | -11 -10 -10 ---------- Run | Scr Mat Min Machines Disabled 1 | . 1 . Max in Single Turn 1 | . 1 . Machines Sabotaged . | . . . Garrisons Compromised . | . . . Overloaded Fab Kills . | . . . Fab Network Shutdowns . | . . . Hacking | -11 -10 -10 --------- Run | Scr Mat Min Machines Accessed 4 | . 3 1 Terminals 4 | . 3 1 Fabricators . | . . . Repair Stations . | . . . Recycling Units . | . . . Scanalyzers . | . . . Garrison Access . | . . . Total Hacks 8 | . 5 3 Successful 8 | . 5 3 Failed . | . . . Catastrophic . | . . . Database Lockouts . | . . . Manual . | . . . Terminals 8 | . 5 3 Fabricators . | . . . Repair Stations . | . . . Recycling Units . | . . . Scanalyzers . | . . . Garrison Access . | . . . Terminal Hacks 8 | . 5 3 Record 6 | . 3 3 Alert Level 1 | . 1 . Surveillance Status 1 | . 1 . Fabricator Hacks . | . . . Repair Station Hacks . | . . . Recycling Unit Hacks . | . . . Scanalyzer . | . . . Garrison Access Hacks . | . . . Unauthorized Hacks . | . . . Terminals . | . . . Fabricators . | . . . Repair Stations . | . . . Recycling Units . | . . . Scanalyzers . | . . . Garrison Access . | . . . Data Cores Recovered . | . . . Used . | . . . Hacking Detections 1 | . . 1 Full Trace Events . | . . . Feedback Events . | . . . Feedback Blocked . | . . . Robot Schematics Acquired . | . . . Robots Built . | . . . Matter . | . . . Time . | . . . Total Robot Build Rating . | . . . Part Schematics Acquired . | . . . Parts Built . | . . . Matter . | . . . Time . | . . . Total Part Build Rating . | . . . Parts Repaired . | . . . Time . | . . . Parts Recycled . | . . . Recycled Matter . | . . . Retrieved Matter . | . . . Retrieved Components . | . . . Parts Scanalyzed . | . . . Part Schematics Acquired . | . . . Parts Damaged . | . . . Bothacking | -11 -10 -10 ------------ Run | Scr Mat Min Used RIF Installer . | . . . Robots Hacked . | . . . Non-combat . | . . . Combat . | . . . Robot Hacks Applied . | . . . Relay Couplers Released . | . . . Robots Rewired . | . . . Allies Hacked . | . . . Hacks Repelled . | . . . Allies | -11 -10 -10 -------- Run | Scr Mat Min Total Allies . | . . . Largest Group . | . . . Highest-Rated Group . | . . . Highest-Rated Ally . | . . . Total Orders . | . . . Ally Attacks . | . . . Total Damage . | . . . Kills . | . . . Allies Corrupted . | . . . Allies Melted . | . . . Intel | -11 -10 -10 ------- Run | Scr Mat Min Robot Analysis Total . | . . . Derelict Logs Recovered . | . . . Drone Launches . | . . . Drone Recoveries . | . . . Exploration | -11 -10 -10 ------------- Run | Scr Mat Min Turns Passed 2100 | 78 842 1180 Spaces Moved 1081 | 60 474 547 Core 19 | 19 . . Treads . | . . . Legs 1062 | 41 474 547 Wheels . | . . . Hover . | . . . Flight . | . . . Fastest Speed 50 | 50 120 180 Average Speed 160 | 99 145 180 Slowest Speed 180 | 120 180 180 Overloaded Moves . | . . . Propulsion Burnouts . | . . . Robots Hopped . | . . . Cave-ins Triggered . | . . . Exploration Rate (%) 55 | 4 72 91 Regions Visited 2 Branch Regions 1 Pre-discovered Areas . | . . . Known Exits Taken 2 | 1 1 . Unknown Exits Taken . | . . . Scrap Searched 2 | . . 2 Spaces Dug . | . . . Terrain Destroyed 12 | . . 12 Melee . | . . . Projectile . | . . . AOE 12 | . . 12 Actions | -11 -10 -10 --------- Run | Scr Mat Min Total 1331 | 75 576 680 Wait 139 | . 50 89 Move 1079 | 59 473 547 Hop . | . . . Pick Up 23 | 8 12 3 Fast Attach 4 | 2 2 . Attach 7 | 5 . 2 Detach . | . . . Swap 8 | . 5 3 Drop 9 | . 8 1 Fire 61 | 1 25 35 Melee . | . . . Ram . | . . . Kick 1 | . 1 . Crush . | . . . Escape Stasis . | . . . Rewire . | . . . Trap . | . . . Miscellaneous . | . . . Route ------- -11/Scrapyard -10/Materials (discovered 2 exits: *Mat / *Min) -10/Mines (discovered 2 exits: *Mat x2) History --------- Turn | Location | Event 5 | -11/Scrapyard | Identified exit to Materials 5 | -11/Scrapyard | Discovered exit to Materials (range 15) 79 | -11/Scrapyard | Entered Materials 79 | -10/Materials | Evolved 1 slot: Utility x1 305 | -10/Materials | Build established: Mutant 429 | -10/Materials | Identified exit to Mines 429 | -10/Materials | Discovered exit to Mines (range 14) 737 | -10/Materials | Identified exit to Materials 737 | -10/Materials | Discovered exit to Materials (range 5) 921 | -10/Materials | Entered Mines 1024 | -10/Mines | Discovered exit to Materials (range 8) 1140 | -10/Mines | Received a Rocket Launcher from a helpful Derelict 1726 | -10/Mines | Discovered exit to Materials (range 10) 1737 | -10/Mines | A weapon hastily lodged in a ceiling crevice suddenly fell to the ground 2052 | -10/Mines | Assembled infested the area 2086 | -10/Mines | Core integrity fell below 50% 2096 | -10/Mines | Core integrity fell below 20% 2101 | -10/Mines | Destroyed by D-53 Grenadier with Mini Grenade Launcher Last Messages --------------- 02084_ as-54388 destroyed. 02085_ as-92534 destroyed. 02085_ as-12689 destroyed. 02085_ as-49238 destroyed. 02085_ D-53 Grenadier knocked back. 02089_ as-94228 destroyed. 02089_ Aluminum Leg destroyed. 02091_ Ion Engine destroyed. 02091_ Lgt. Cannon destroyed. 02091_ System corrupted: Lgt. Cannon targeting data glitched. 02094_ The unstable cave ceiling collapses. 02094_ U-05 Engineer lays Concrete. 02095_ U-05 Engineer destroyed. 02095_ as-15516 destroyed. 02095_ Aluminum Leg destroyed. 02096_ The unstable cave ceiling collapses. 02099_ System corrupted: Rocket Launcher failed to launch. 02099_ System corrupted: Lgt. Cannon targeting data glitched. 02100_ The unstable cave ceiling collapses. 02101_ Lgt. Cannon destroyed. Map ----- +----------------------------------------------------+ | ??# #???## ## # | | ??######## #????## ## #? | | ?????????# ####### ### ## | | ?????????# | | ?????????######### #### | | ??????????????#### ######### | | ??????????????# #?????? | | ??????????????# #?????? | | ??????????????# #?????? | | ??????????????# #?????? | | ??????????????# #?????? | | ??????????????##### ##??#### | | ??????????????????# #??# # | | ??????????????????# #?# # | | ???????####?????### ## | | ??????? ####?## | | ??????# ### | | ?????# % ## | | ????## dd ##### ###? | | ##### ????## ##??? | | # # #?????# #???? | | ##??????# ##??? | | ##???????# #??? | | #????????# #??? | | #???????## #### | | @ #???????# | | #???????# | | #???????## ###### # | | ##????????####????# # | | # # a#?????????????????# # | | #####aa#?????????????????# # | | ????#aa#?????????????????# # | | ???? =a ?????????????????# | | ???? %a ????????????????### | | ???? ??????????????????? | | ??? # ?????????????????? | | ???##? ##?????????????????# | | ?????? #??????????????????# | | ?????? ??????????????????# | | ?????? ?????????????????## | | ?????? ?????????????????# | | ?????? ??????????????????# | | ??????????????????????????## | | ???????????????????????????# | | ???????????????????????????? | | ???????????????????????????? | | ???????????????????????????? | | ???????????????????????????? | | ???????????????????????????? | | ???????????????????????????? | +----------------------------------------------------+ Best States ------------- Heat Dissipation 25 Energy Generation 10 Energy Capacity 250 Matter Stores 332 Matter Capacity 500 Sight Range 16 Robot Scan Range 10 Terrain Scan Density 10 Resistance: KI 35 Resistance: TH 35 Resistance: EX 35 Resistance: EM 35 Resistance: I 35 Resistance: S 35 Resistance: P 35 Evasion (%) 50 Targeting Accuracy 5 Item Schematics ----------------- None Robot Schematics ------------------ None Fabricated ------------ Nothing Alien Tech Used ----------------- None Achievements -------------- Slippery One Challenges ------------ None Game ------ Seed ManeuveringImpactLeg Manual? 0 Play Time 00:17:19 Cumulative 45.6 hours Start 2019.11.26 @ 21:02:01 End 2019.11.28 @ 11:37:56 Sessions 2 Manual Loads 0 Difficulty Explorer Special Mode None Game No. 95 Rogue 54 Adventurer 16 Explorer 25 Win Type - Total 0 Types 0/0/0/0/0/0/0 Lore% 23 Gallery% 40 Achievement% 23 Wizard Run 0 Options --------- ASCII 0 Keyboard 0 Movement Mouse Keybinds 0 Fullscreen 0 Font 16/Dina Map View 76x50 Tactical HUD 1 Map Filters NONE Filters NONE Steam 1 RUN: e185163e-136b-4340-9071-873aab225ac8